Cogmind - Beta 17 @@@ ROGUE MODE // 2026.08.23 @ 10:20:25 Player: IsAway Result: Destroyed by G-67 Veteran with Plasma Rifle Performance ------------- Evolutions (4) 2000 Regions Visited (13) 2600 Robots Destroyed (35) 175 Value Destroyed (1596) 1596 Prototype IDs (23) 460 Alien Tech Used (0) 0 Bonus (1623) 1623 TOTAL SCORE: 8454 Bonus ------- High Alert Combat Kills 22 Follower Combat Kills 401 Entered Garrisons 400 Used RIF Installer 500 Aligned with FarCom 300 Cogmind --------- Core Integrity 0/850 Matter 300/300 Energy 66/100 System Corruption 0% Temperature Cool (21) Movement Core (250) Ox4 Location -6/Garrison Parts ------- > --- POWER (3) -------- (None) > --- PROPULSION (5) --- (None) > --- UTILITY (4) ------ Medium Storage Unit > --- WEAPON (3) ------- Falx > --- INVENTORY (10) --- Huge Storage Unit Authchip [R/NC] Authchip [R/Combat] Authchip [R/Combat] Relay Coupler [Behemoth] (4) Phase Cannon Gauss Rifle Improved Datajack Plasma Cutter Peak State ------------ > --- POWER ------------ Deuterium Engine Light Nuclear Core Light Fission Core > --- PROPULSION ------- Aluminum Leg Carbon-fiber Leg Carbon-fiber Leg Carbon-fiber Leg Carbon-fiber Leg > --- UTILITY ---------- Huge Storage Unit Improved Trap Scanner Makeshift ECM Suite EM Shield > --- WEAPON ----------- Great Axe Falx Heavy Pick > --- INVENTORY -------- Medium Storage Unit Advanced Terrain Scanner Improved Melee Analysis Suite Authchip [R/NC] Authchip [R/Combat] Authchip [R/Combat] Authchip [R/Combat] Authchip [R/Combat] Relay Coupler [Behemoth] Phase Cannon Gauss Rifle Improved Datajack Plasma Cutter Falx Falx [Rating: 58] Favorites ----------- Power Light Nuclear Core Engine Deuterium Engine Power Core Light Nuclear Core Propulsion Carbon-fiber Leg Leg Carbon-fiber Leg Wheel Armored Wheel Hover Unit Hover Unit Utility Medium Storage Unit Device ECM Suite Storage Medium Storage Unit Processor Machine Analyzer Protection Light Armor Plating Weapon Great Axe Energy Gun Small Laser Energy Cannon Guided Plasma Cannon Ballistic Gun High-powered Shotgun Special Weapon Mining Laser Impact Weapon Flail Slashing Weapon Great Axe Piercing Weapon Heavy Pick Build | -11 -10 -10 -9 -9 -9 -8 -8 -8 -8 -8 -8 -6 -6 ------- Run | Yrd Mat Min Mat Min Exi Min Mat Sto Gar Rec Scr Fac Gar Slots Evolved 8 | . . . 2 . . . 2 . . . . 4 . Power 2 | . . . . . . . 1 . . . . 1 . Propulsion 3 | . . . 2 . . . . . . . . 1 . Utility 2 | . . . . . . . 1 . . . . 1 . Weapon 1 | . . . . . . . . . . . . 1 . Parts Attached 85 | 2 9 1 2 . 1 1 16 2 31 7 8 2 3 Power 15 | . 1 . . . . 1 2 . 7 2 1 . 1 Engine 5 | . 1 . . . . 1 2 . . . 1 . . Core 10 | . . . . . . . . . 7 2 . . 1 Reactor . | . . . . . . . . . . . . . . Propulsion 31 | . 5 . 2 . . . 5 . 14 4 1 . . Treads . | . . . . . . . . . . . . . . Leg 24 | . 2 . . . . . 4 . 13 4 1 . . Wheel 1 | . . . . . . . . . 1 . . . . Hover 6 | . 3 . 2 . . . 1 . . . . . . Flight . | . . . . . . . . . . . . . . Utility 17 | . 3 . . . 1 . 3 1 3 1 3 1 1 Device 10 | . 2 . . . . . . 1 3 1 2 1 . Storage 5 | . 1 . . . 1 . 2 . . . . . 1 Processor 1 | . . . . . . . . . . . 1 . . Hackware . | . . . . . . . . . . . . . . Protection 1 | . . . . . . . 1 . . . . . . Artifact . | . . . . . . . . . . . . . . Weapon 22 | 2 . 1 . . . . 6 1 7 . 3 1 1 Energy Gun 4 | 2 . . . . . . . . 1 . 1 . . Energy Cannon 2 | . . . . . . . 2 . . . . . . Ballistic Gun 5 | . . . . . . . 1 . 4 . . . . Ballistic Cannon . | . . . . . . . . . . . . . . Launcher . | . . . . . . . . . . . . . . Special Weapon 2 | . . 1 . . . . . . 1 . . . . Impact Weapon 2 | . . . . . . . 2 . . . . . . Slashing Weapon 6 | . . . . . . . 1 1 1 . 1 1 1 Piercing Weapon 1 | . . . . . . . . . . . 1 . . Special Melee Weapon . | . . . . . . . . . . . . . . Unidentified Prototypes . | . . . . . . . . . . . . . . Parts Lost 38 | . . . . . . . 3 1 13 6 . . 15 Power 9 | . . . . . . . 1 . 3 1 . . 4 Propulsion 14 | . . . . . . . . . 7 2 . . 5 Utility 7 | . . . . . . . 1 1 1 1 . . 3 Weapon 8 | . . . . . . . 1 . 2 2 . . 3 Highest Loss Streak 15 | . . . . . . . 2 1 6 4 . . 15 To Critical Strikes . | . . . . . . . . . . . . . . Average Backups 9 | 2 7 8 5 6 7 8 9 10 9 9 9 7 13 Power . | . . 1 1 1 1 . . . . 1 1 . . Propulsion 1 | 1 1 3 . 1 2 2 4 3 1 . 1 . . Utility 2 | . 1 2 2 2 2 3 1 1 1 2 3 3 7 Weapon 3 | . 2 2 2 2 2 2 2 5 5 3 2 1 3 Tool/Special . | . . . . . . . . . . . . . . Unused Backups 21 | . 3 1 . . 2 . . . 4 . 1 . 10 Power 2 | . . . . . 1 . . . 1 . . . . Propulsion 1 | . . . . . . . . . 1 . . . . Utility 11 | . 1 1 . . . . . . 2 . . . 7 Weapon 5 | . 1 . . . 1 . . . . . 1 . 2 Tool/Special 2 | . 1 . . . . . . . . . . . 1 Average Slot Usage (%) 91 | . 86 100 99 100 96 88 90 87 90 88 94 92 86 Engine 5 | . 10 14 11 11 11 11 16 9 . . 8 6 4 Core 9 | . . . . . . . . . 15 14 9 6 10 Leg 26 | . 4 . . . . . 30 36 29 33 36 33 27 Hover 6 | . 21 28 43 44 44 44 4 . . . . . . Device 12 | . 7 14 11 11 7 . . . 14 13 14 19 17 Storage 10 | . 12 14 11 11 11 11 18 18 11 9 9 6 6 Energy Gun 3 | . 28 18 11 11 11 11 1 . . . . . . Ballistic Gun 4 | . . . . . . . 4 . 9 5 . 4 . Special Weapon 2 | . . 10 11 11 11 11 2 . . 4 . . . Slashing Weapon 7 | . . . . . . . . 15 7 7 15 6 12 Peak Build Rating 58 | 2 7 7 9 9 11 9 33 31 33 32 38 56 58 Average Rating 26 | 1 6 7 8 9 9 9 24 27 25 27 34 48 50 On Entrance 18 | . 2 7 7 9 9 9 9 31 27 28 31 37 56 Avg Prop Armor Cover (%) 8 | . . . 10 10 6 9 5 6 8 . . . . Naked Turns . | . . . . . . . . . . . . . . Heaviest Build 124 | 2 12 12 12 12 14 10 45 38 35 32 41 54 124 Greatest Support 70 | 3 20 12 24 12 18 18 60 45 45 55 55 70 70 Greatest Overweight (x) 8 | . 1 . . . . . 1 . 8 1 . . 2 Average Overweight (x) . | . . . . . . . . . . . . . . Largest Inventory Capacity 25 | 5 8 8 8 8 8 8 10 10 10 10 10 10 25 Average Capacity 10 | 5 7 8 8 8 8 8 9 10 10 10 10 10 20 Most Carried 15 | 5 8 8 7 7 8 8 10 10 10 10 10 10 15 Average Carried 9 | 2 7 7 5 6 7 7 9 10 9 9 9 7 13 Final Capacity 10 | 5 8 8 8 8 8 8 10 10 10 10 10 10 10 Final Carried 10 | 5 8 8 6 7 8 8 10 10 10 10 10 10 9 Class Distribution -------------------- 49% | Scavenger-Mutant 32% | Mutant 14% | Scavenger-Assassin Dominant Class ---------------- Mutant | -10/Materials Mutant | -10/Mines Mutant | -9/Materials Mutant | -9/Mines Mutant | -9/Exiles Mutant | -8/Mines Mutant | -8/Materials Mutant | -8/Storage Scavenger-Mutant | -8/Garrison Scavenger-Assassin | -8/Recycling Scavenger-Mutant | -8/Scraptown Scavenger-Assassin | -6/Factory Scavenger-Mutant | -6/Garrison Resources | -11 -10 -10 -9 -9 -9 -8 -8 -8 -8 -8 -8 -6 -6 ----------- Run | Yrd Mat Min Mat Min Exi Min Mat Sto Gar Rec Scr Fac Gar Matter Collected 1566 | 220 97 259 . 34 . . 74 30 540 143 125 . 44 Remotely . | . . . . . . . . . . . . . . Salvage Created 1300 | . 97 . . . . . 171 139 464 329 . . 100 Parts 77 | . 15 . . . . . 11 6 24 15 . . 6 Haulers Intercepted . | . . . . . . . . . . . . . . Recyclers Shooed 1 | . 1 . . . . . . . . . . . . Parts Field Recycled . | . . . . . . . . . . . . . . Retrieved Matter . | . . . . . . . . . . . . . . Parts Self-Destructed . | . . . . . . . . . . . . . . Prevented . | . . . . . . . . . . . . . . Parts Restored . | . . . . . . . . . . . . . . Kills | -11 -10 -10 -9 -9 -9 -8 -8 -8 -8 -8 -8 -6 -6 ------- Run | Yrd Mat Min Mat Min Exi Min Mat Sto Gar Rec Scr Fac Gar Combat Hostiles Destroyed 32 | . 5 . . . . . 4 4 11 4 . . 4 Melee 18 | . . . . . . . 1 4 8 1 . . 4 Guns 10 | . 5 . . . . . 2 . 3 . . . . Cannons 4 | . . . . . . . 1 . . 3 . . . Classes Destroyed 8 | . 2 . . . . . 3 . . 3 . . . Builder 1 | . . . . . . . . . . 1 . . . Tunneler 1 | . . . . . . . . . . 1 . . . Watcher 1 | . 1 . . . . . . . . . . . . Swarmer 13 | . 5 . . . . . . 2 2 . . . 4 Grunt 10 | . . . . . . . 1 1 7 1 . . . Sentry 5 | . . . . . . . 2 1 1 1 . . . Hunter 3 | . . . . . . . 1 . 1 1 . . . Programmer 1 | . . . . . . . . . . 1 . . . Best Kill Streak 5 | . 4 . . . . . 1 4 5 3 . . 4 Combat Bots Only 5 | . 3 . . . . . 1 4 5 3 . . 4 Max Kills in Single Turn 1 | . 1 . . . . . 1 1 1 1 . . 1 Gunslinging . | . . . . . . . . . . . . . . Exploded . | . . . . . . . . . . . . . . Melee 1 | . . . . . . . 1 1 1 1 . . 1 Uniques/NPCs Destroyed . | . . . . . . . . . . . . . . Combat | -11 -10 -10 -9 -9 -9 -8 -8 -8 -8 -8 -8 -6 -6 -------- Run | Yrd Mat Min Mat Min Exi Min Mat Sto Gar Rec Scr Fac Gar Hostile Shots Fired 437 | . 22 . 8 . . . 46 24 153 39 . 1 144 Missed 103 | . 3 . 1 . . . 12 4 42 7 . . 34 Hits 334 | . 19 . 7 . . . 34 20 111 32 . 1 110 Projectile 334 | . 19 . 7 . . . 34 20 111 32 . 1 110 AOE 5 | . . . . . . . . . . 5 . . . Critical Strikes 11 | . . . . . . . . 2 5 . . . 4 Damage Taken 5061 | . 153 . 56 . . . 513 213 1598 608 . 17 1903 Core 1318 | . 52 . 15 . . . 67 24 248 51 . . 861 Absorbed by Shields . | . . . . . . . . . . . . . . Regen/Repaired (Parts) 19 | . . . 19 . . . . . . . . . . Core Remaining (%) 76 | 100 . 79 . . . 96 . . . . 29 . . Volleys Fired 122 | . 24 1 2 3 . 3 26 . 31 32 . . . Largest 2 | . 2 1 1 1 . 1 1 . 2 2 . . . Hottest 120 | . 80 100 100 100 . 100 100 . 53 120 . . . Shots Fired 171 | . 48 1 2 3 . 3 26 . 50 38 . . . Gun 118 | . 48 . . . . . 11 . 45 14 . . . Cannon 17 | . . . . . . . 11 . . 6 . . . Launcher . | . . . . . . . . . . . . . . Special 36 | . . 1 2 3 . 3 4 . 5 18 . . . Kinetic 70 | . . . . . . . 11 . 45 14 . . . Thermal 101 | . 48 1 2 3 . 3 15 . 5 24 . . . Explosive . | . . . . . . . . . . . . . . Electromagnetic . | . . . . . . . . . . . . . . Robot Hit Streak 8 | . 4 . . . . . 6 . 5 8 . . . Robot Miss Streak 5 | . 5 . . . . . 2 . 4 4 . . . Penetration Max . | . . . . . . . . . . . . . . Secondary Targets 1 | . . . . . . . . . 1 . . . . Max Gunslinging Chain 1 | . . . . . . . . . 1 . . . . Shots Hit Robots 139 | . 22 . . . . . 20 8 40 32 . 1 16 Core Hits 58 | . 8 . . . . . 8 4 21 13 . . 4 Critical Kills . | . . . . . . . . . . . . . . Critical Parts Destroyed 1 | . . . . . . . 1 . . . . . . Critical Strikes 4 | . . . . . . . 1 1 1 . . . 1 Destroy 1 | . . . . . . . 1 . . . . . . Sever 3 | . . . . . . . . 1 1 . . . 1 Melee Attacks 95 | . . . . . . . 7 10 48 4 . 1 25 Impact 7 | . . . . . . . 7 . . . . . . Slashing 85 | . . . . . . . . 10 48 4 . . 23 Piercing 3 | . . . . . . . . . . . . 1 2 Sneak Attacks 1 | . . . . . . . . . . 1 . . . Combat Hostiles . | . . . . . . . . . . . . . . Follow-up Attacks 9 | . . . . . . . . 2 1 . . . 6 Damage Inflicted 3506 | . 281 . . . . . 427 310 1066 736 . 44 642 Guns 1115 | . 281 . . . . . 201 . 410 223 . . . Cannons 428 | . . . . . . . 206 . . 222 . . . Explosions . | . . . . . . . . . . . . . . Melee 1805 | . . . . . . . 20 310 656 133 . 44 642 Ramming . | . . . . . . . . . . . . . . Kinetic 834 | . . . . . . . 201 . 410 223 . . . Thermal 867 | . 281 . . . . . 206 . . 380 . . . Explosive . | . . . . . . . . . . . . . . Electromagnetic . | . . . . . . . . . . . . . . Impact 20 | . . . . . . . 20 . . . . . . Slashing 1741 | . . . . . . . . 310 656 133 . . 642 Piercing 44 | . . . . . . . . . . . . 44 . Highest Corruption 1 | . . . . . . . . . . 1 1 . . Average Corruption 1 | . . . . . . . . . . 1 1 . . Corruption Purged 1 | . . . . . . . . . . . 1 . . Corruption Blocked . | . . . . . . . . . . . . . . Effects 12 | . . . . . . . . . . 6 6 . . Message Errors 4 | . . . . . . . . . . 1 3 . . Matter Fused 2 | . . . . . . . . . . . 2 . . Heat Flow Errors 2 | . . . . . . . . . . 1 1 . . Energy Discharges 2 | . . . . . . . . . . 2 . . . Data Loss (major) 2 | . . . . . . . . . . 2 . . . Overload Shots . | . . . . . . . . . . . . . . Overflow Damage 105 | . . . . . . . 10 25 . . . 9 61 Projectiles 10 | . . . . . . . 10 . . . . . . Explosions . | . . . . . . . . . . . . . . Melee 95 | . . . . . . . . 25 . . . 9 61 Knockbacks . | . . . . . . . . . . . . . . Impact . | . . . . . . . . . . . . . . Kinetic . | . . . . . . . . . . . . . . Secondary . | . . . . . . . . . . . . . . Self-Inflicted Damage . | . . . . . . . . . . . . . . Shots . | . . . . . . . . . . . . . . Rammed . | . . . . . . . . . . . . . . Targets Rammed . | . . . . . . . . . . . . . . Kicked . | . . . . . . . . . . . . . . Crushed . | . . . . . . . . . . . . . . Highest Temperature 468 | . 176 28 16 18 . 48 468 2 50 448 159 . 12 Average Temperature 87 | . 53 16 10 10 . 25 167 2 23 202 81 . 7 Received Heat Transfer 1357 | . . . . . . . 108 81 630 63 . . 475 Effects 5 | . . . . . . . 3 . . 2 . . . Shutdowns 2 | . . . . . . . 1 . . 1 . . . Energy Bleed 2 | . . . . . . . 2 . . . . . . Short Circuit 1 | . . . . . . . . . . 1 . . . Siege Activations . | . . . . . . . . . . . . . . Martial Activations . | . . . . . . . . . . . . . . Shielding Activations . | . . . . . . . . . . . . . . Robots Disrupted . | . . . . . . . . . . . . . . Combat Hostiles . | . . . . . . . . . . . . . . Robots Corrupted . | . . . . . . . . . . . . . . Combat Hostiles . | . . . . . . . . . . . . . . Parts Fried . | . . . . . . . . . . . . . . Impact Corruptions . | . . . . . . . . . . . . . . Robots Melted . | . . . . . . . . . . . . . . Combat Hostiles . | . . . . . . . . . . . . . . Parts Melted 3 | . . . . . . . 1 . . 2 . . . Heat Transferred 2097 | . 625 . . . . . 400 . . 1072 . . . Parts Sabotaged . | . . . . . . . . . . . . . . Parts Stolen . | . . . . . . . . . . . . . . Parts Stripped . | . . . . . . . . . . . . . . Power Chain Reactions . | . . . . . . . . . . . . . . Alert | -11 -10 -10 -9 -9 -9 -8 -8 -8 -8 -8 -8 -6 -6 ------- Run | Yrd Mat Min Mat Min Exi Min Mat Sto Gar Rec Scr Fac Gar Maximum Alert Level 3 | . . . . . . . . . 3 1 . . . Low Security (%) 59 | 100 100 100 100 100 . 100 100 100 32 28 . 100 100 Level 1 26 | . . . . . . . . . 31 71 . . . Level 2 7 | . . . . . . . . . 20 . . . . Level 3 6 | . . . . . . . . . 15 . . . . Level 4 . | . . . . . . . . . . . . . . Level 5 . | . . . . . . . . . . . . . . High Security . | . . . . . . . . . . . . . . Max Security . | . . . . . . . . . . . . . . Peak Influence 715 | . 72 46 23 9 . 2 42 81 715 334 . . 40 Initial 321 | . . . 9 8 . . . 11 48 321 . . . Average 188 | . 29 32 4 . . . 14 35 355 229 . . 4 Influence Increases 1599 | . 142 46 25 3 . 3 140 104 817 219 . . 100 Destroy 0b10 Robot/C 900 | . 100 . . . . . 80 80 440 120 . . 80 Destroy 0b10 Robot/NC 30 | . 5 . . . . . . . 5 20 . . . Destroy Leader 102 | . 22 . . . . . 30 20 10 . . . 20 Allied During Kill 26 | . . . . . . . . . 22 4 . . . Successful Hack 59 | . . . 8 . . . 20 4 14 13 . . . Disable Machine 75 | . . . . . . . . . 60 15 . . . Anti-Garrison Action 200 | . . . . . . . . . 200 . . . . Destroy Structure 72 | . . 1 2 3 . 3 10 . 51 2 . . . Partial Spotted 75 | . . 45 15 . . . . . 15 . . . . Lose Combat Pursuer 60 | . 15 . . . . . . . . 45 . . . Influence Decreases 1599 | . 142 20 28 25 1 3 113 56 177 816 118 . 100 Entered New Map 588 | . . . 17 15 1 . . 16 27 394 118 . . Time Decay 660 | . 142 20 11 10 . 3 102 30 . 342 . . . Lost Part 311 | . . . . . . . 11 10 130 60 . . 100 Lost Ally 40 | . . . . . . . . . 20 20 . . . Squads Dispatched 3 | . 1 . 1 . . . . 1 . . . . . Investigation . | . . . . . . . . . . . . . . Extermination . | . . . . . . . . . . . . . . Reinforcement 2 | . 1 . 1 . . . . . . . . . . Assault . | . . . . . . . . . . . . . . Garrison 1 | . . . . . . . . 1 . . . . . Intercept . | . . . . . . . . . . . . . . Searches Triggered . | . . . . . . . . . . . . . . Construction Impeded . | . . . . . . . . . . . . . . Haulers Reinforced . | . . . . . . . . . . . . . . Active Scanning Responses . | . . . . . . . . . . . . . . Cargo Convoy Interrupts . | . . . . . . . . . . . . . . Stealth | -11 -10 -10 -9 -9 -9 -8 -8 -8 -8 -8 -8 -6 -6 --------- Run | Yrd Mat Min Mat Min Exi Min Mat Sto Gar Rec Scr Fac Gar Distress Signals 4 | . . . 1 . . . 1 . 2 . . . . Communications Jammed . | . . . . . . . . . . . . . . Distress Signals . | . . . . . . . . . . . . . . Times Spotted 90 | . 11 2 6 . . . 7 4 27 9 . 4 20 Peak Tracking Total 8 | . 4 2 5 . . . 8 3 7 6 . 3 8 Tactical Retreats 10 | . 1 1 . . . . . . 2 3 . . 3 ECM-based Alert Blocks 20 | . . 2 . . . . . . 4 . . . 14 Traps | -11 -10 -10 -9 -9 -9 -8 -8 -8 -8 -8 -8 -6 -6 ------- Run | Yrd Mat Min Mat Min Exi Min Mat Sto Gar Rec Scr Fac Gar Traps Triggered 3 | . . . . . . . . . 3 . . . . Indirectly . | . . . . . . . . . . . . . . Trap Hack Attempts . | . . . . . . . . . . . . . . Triggered . | . . . . . . . . . . . . . . Disarmed . | . . . . . . . . . . . . . . Reprogrammed . | . . . . . . . . . . . . . . Reused . | . . . . . . . . . . . . . . Traps Extracted . | . . . . . . . . . . . . . . Installed . | . . . . . . . . . . . . . . Triggered . | . . . . . . . . . . . . . . Machines | -11 -10 -10 -9 -9 -9 -8 -8 -8 -8 -8 -8 -6 -6 ---------- Run | Yrd Mat Min Mat Min Exi Min Mat Sto Gar Rec Scr Fac Gar Machines Disabled 8 | . . . . . . . . . 7 1 . . . Max in Single Turn 1 | . . . . . . . . . 1 1 . . . Garrison Relay 2 | . . . . . . . . . 2 . . . . Machines Repaired . | . . . . . . . . . . . . . . Machines Dismantled . | . . . . . . . . . . . . . . Machines Sabotaged . | . . . . . . . . . . . . . . Overloaded Fab Kills . | . . . . . . . . . . . . . . Hacking | -11 -10 -10 -9 -9 -9 -8 -8 -8 -8 -8 -8 -6 -6 --------- Run | Yrd Mat Min Mat Min Exi Min Mat Sto Gar Rec Scr Fac Gar Machines Accessed 25 | . 3 . 3 . 1 . 3 1 2 8 . 4 . Terminals 14 | . 2 . 1 . . . 2 . 2 5 . 2 . Fabricators . | . . . . . . . . . . . . . . Repair Stations 1 | . . . 1 . . . . . . . . . . Recycling Units 5 | . 1 . . . . . . . . 3 . 1 . Scanalyzers 2 | . . . 1 . . . 1 . . . . . . Garrison Access 2 | . . . . . . . . 1 . . . 1 . Total Hacks 47 | . 7 . 5 . 1 . 5 2 3 19 . 5 . Successful 21 | . 3 . 4 . 1 . 2 1 1 8 . 1 . Failed 25 | . 4 . . . . . 3 1 2 11 . 4 . Catastrophic 8 | . 2 . . . . . 1 . . 3 . 2 . Database Lockouts 1 | . . . 1 . . . . . . . . . . Manual 9 | . 3 . 1 . 1 . 1 . 1 2 . . . Terminals 26 | . 4 . 1 . . . 2 . 3 13 . 3 . Fabricators . | . . . . . . . . . . . . . . Repair Stations 2 | . . . 2 . . . . . . . . . . Recycling Units 10 | . 3 . . . . . . . . 6 . 1 . Scanalyzers 5 | . . . 2 . . . 3 . . . . . . Garrison Access 3 | . . . . . . . . 2 . . . 1 . Terminal Hacks 8 | . 1 . 1 . 1 . 1 . 1 3 . . . Record 1 | . . . . . . . . . . 1 . . . Branch Access Points 2 | . . . 1 . . . 1 . . . . . . Fabricator Index 1 | . . . . . . . . . . 1 . . . Scanalyzer Index 1 | . . . . . . . . . . 1 . . . Dispatch Records 1 | . 1 . . . . . . . . . . . . Patrol Navigation 1 | . . . . . . . . . 1 . . . . Proto ID Catalog 1 | . . . . . 1 . . . . . . . . Fabricator Hacks . | . . . . . . . . . . . . . . Repair Station Hacks 2 | . . . 2 . . . . . . . . . . Scan Component 1 | . . . 1 . . . . . . . . . . Repair 1 | . . . 1 . . . . . . . . . . Recycling Unit Hacks 6 | . 2 . . . . . . . . 4 . . . Report Inventory 2 | . 1 . . . . . . . . 1 . . . Retrieve Components 4 | . 1 . . . . . . . . 3 . . . Scanalyzer 2 | . . . 1 . . . 1 . . . . . . Retrieve Study 2 | . . . 1 . . . 1 . . . . . . Garrison Access Hacks 2 | . . . . . . . . 1 . . . 1 . Unlock Access 2 | . . . . . . . . 1 . . . 1 . Unauthorized Hacks 1 | . . . . . . . . . . 1 . . . Terminals 1 | . . . . . . . . . . 1 . . . Operators 1 | . . . . . . . . . . 1 . . . Fabricators . | . . . . . . . . . . . . . . Repair Stations . | . . . . . . . . . . . . . . Recycling Units . | . . . . . . . . . . . . . . Scanalyzers . | . . . . . . . . . . . . . . Garrison Access . | . . . . . . . . . . . . . . Data Cores Recovered . | . . . . . . . . . . . . . . Used . | . . . . . . . . . . . . . . Hacking Detections 19 | . 3 . 1 . . . 2 1 2 7 . 3 . Full Trace Events 1 | . 1 . . . . . . . . . . . . Feedback Events . | . . . . . . . . . . . . . . Feedback Blocked . | . . . . . . . . . . . . . . Robot Schematics Acquired . | . . . . . . . . . . . . . . Robots Built . | . . . . . . . . . . . . . . Authchips . | . . . . . . . . . . . . . . Time . | . . . . . . . . . . . . . . Total Robot Build Rating . | . . . . . . . . . . . . . . Part Schematics Acquired . | . . . . . . . . . . . . . . Parts Built . | . . . . . . . . . . . . . . Authchips . | . . . . . . . . . . . . . . Time . | . . . . . . . . . . . . . . Total Part Build Rating . | . . . . . . . . . . . . . . Part Studies Acquired 2 | . . . 1 . . . 1 . . . . . . Parts Repaired 1 | . . . 1 . . . . . . . . . . Time 26 | . . . 26 . . . . . . . . . . Parts Recycled . | . . . . . . . . . . . . . . Recycled Matter . | . . . . . . . . . . . . . . Retrieved Matter . | . . . . . . . . . . . . . . Retrieved Components 15 | . 3 . . . . . . . . 12 . . . Parts Scanalyzed . | . . . . . . . . . . . . . . Part Schematics Acquired . | . . . . . . . . . . . . . . Parts Damaged . | . . . . . . . . . . . . . . Bothacking | -11 -10 -10 -9 -9 -9 -8 -8 -8 -8 -8 -8 -6 -6 ------------ Run | Yrd Mat Min Mat Min Exi Min Mat Sto Gar Rec Scr Fac Gar Used RIF Installer 1 | . . . . . . . . . 1 . . . . Robots Hacked . | . . . . . . . . . . . . . . Non-combat . | . . . . . . . . . . . . . . Combat . | . . . . . . . . . . . . . . Robot Hacks Applied . | . . . . . . . . . . . . . . Relay Couplers Released 8 | . . . . . . . . . 8 . . . . Machine Destruction 8 | . . . . . . . . . 8 . . . . Fabnet Peak Effective % . | . . . . . . . . . . . . . . Robots Rewired 7 | . . . . . . . . . 2 5 . . . Allies Hacked . | . . . . . . . . . . . . . . Hacks Repelled . | . . . . . . . . . . . . . . Allies | -11 -10 -10 -9 -9 -9 -8 -8 -8 -8 -8 -8 -6 -6 -------- Run | Yrd Mat Min Mat Min Exi Min Mat Sto Gar Rec Scr Fac Gar Total Allies 7 | . . . . . . . . . 2 5 . . . Largest Group 5 | . . . . . . . . . 2 5 4 . . Highest-Rated Group 68 | . . . . . . . . . 42 68 62 . . Highest-Rated Ally 21 | . . . . . . . . . 21 21 18 . . Total Orders 3 | . . . . . . . . . 2 1 . . . STAY 1 | . . . . . . . . . 1 . . . . ROAM 1 | . . . . . . . . . . 1 . . . FOLLOW 1 | . . . . . . . . . 1 . . . . Ally Attacks 37 | . . . . . . . . . 35 2 . . . Total Damage 857 | . . . . . . . . . 794 63 . . . Kills 14 | . . . . . . . . . 12 2 . . . Allies Corrupted . | . . . . . . . . . . . . . . Allies Melted . | . . . . . . . . . . . . . . Intel | -11 -10 -10 -9 -9 -9 -8 -8 -8 -8 -8 -8 -6 -6 ------- Run | Yrd Mat Min Mat Min Exi Min Mat Sto Gar Rec Scr Fac Gar Active Infowar (turns) 4534 | . 198 55 113 177 106 . . 5 1561 764 1112 243 200 Terrain 2053 | . . . . . . . . . 1 745 1112 195 . Traps 1395 | . . . . . . . . . 776 386 . 48 185 Machine Analysis 1 | . . . . . . . . . . . 1 . . ECM 3036 | . 198 55 113 177 106 . . 5 1560 17 362 243 200 Robot Analysis Total . | . . . . . . . . . . . . . . Derelict Logs Recovered 2 | . . . . 2 . . . . . . . . . Drone Launches . | . . . . . . . . . . . . . . Drone Recoveries . | . . . . . . . . . . . . . . Exploration | -11 -10 -10 -9 -9 -9 -8 -8 -8 -8 -8 -8 -6 -6 ------------- Run | Yrd Mat Min Mat Min Exi Min Mat Sto Gar Rec Scr Fac Gar Turns Passed 5242 | 27 350 55 113 177 149 84 315 67 1561 764 1112 243 225 Spaces Moved 4110 | 39 334 70 164 280 271 114 192 32 866 459 991 200 98 Core 58 | 39 17 . . . . . . . 2 . . . . Treads . | . . . . . . . . . . . . . . Legs 2789 | . 31 . . . . . 146 32 832 459 991 200 98 Wheels 32 | . . . . . . . . . 32 . . . . Hover 1231 | . 286 70 164 280 271 114 46 . . . . . . Flight . | . . . . . . . . . . . . . . Fastest Speed 48 | 50 50 56 48 56 52 52 48 105 105 108 108 108 108 Average Speed 98 | 50 61 56 53 56 53 55 98 105 131 116 108 108 156 Slowest Speed 450 | 50 120 56 56 56 56 56 190 105 450 190 108 108 245 Overloaded Moves . | . . . . . . . . . . . . . . Propulsion Burnouts . | . . . . . . . . . . . . . . Robots Hopped . | . . . . . . . . . . . . . . Potential Cave-ins . | . . . . . . . . . . . . . . Cave-ins Triggered . | . . . . . . . . . . . . . . Exploration Rate (%) 37 | 3 51 22 17 70 69 29 20 8 72 79 60 6 17 Regions Visited 13 Branch Regions 7 Pre-discovered Areas 1 | . . . . . . . . . . . 1 . . Known Exits Taken 4 | . . . 1 . . . 1 1 . . . 1 . Unknown Exits Taken 8 | 1 1 1 . 1 1 1 . . . 1 1 . . Scrap Searched 8 | . . 2 . 1 . . . . . . 5 . . Spaces Dug 26 | . . 1 2 3 . 3 8 . 7 2 . . . Terrain Destroyed 29 | . . 1 2 3 . 3 11 . 7 2 . . . Melee 13 | . . . . . . . 4 . 7 2 . . . Projectile 16 | . . 1 2 3 . 3 7 . . . . . . AOE . | . . . . . . . . . . . . . . Terrain Rammed . | . . . . . . . . . . . . . . Walls Destroyed . | . . . . . . . . . . . . . . Machines Disabled . | . . . . . . . . . . . . . . Actions | -11 -10 -10 -9 -9 -9 -8 -8 -8 -8 -8 -8 -6 -6 --------- Run | Yrd Mat Min Mat Min Exi Min Mat Sto Gar Rec Scr Fac Gar Total 4921 | 45 431 82 182 290 277 125 274 49 1154 621 1034 224 133 Wait 274 | . 46 9 14 7 . 3 13 7 59 77 19 13 7 Move 4099 | 38 333 69 163 279 270 113 191 32 865 458 990 200 98 Hop . | . . . . . . . . . . . . . . Pick Up 57 | 5 10 1 1 1 2 2 7 . 12 3 3 4 6 Fast Attach 43 | 2 4 . . . 1 . 10 1 14 2 8 . 1 Attach 22 | . 4 . 2 . . 1 3 . 3 4 . 4 1 Detach 7 | . 2 . . . 1 . 2 . 1 . 1 . . Swap 45 | . 1 1 . . . 1 4 1 24 7 2 2 2 Drop 62 | . 7 1 . . 3 2 12 . 22 3 11 . 1 Fire 122 | . 24 1 2 3 . 3 26 . 31 32 . . . Melee 81 | . . . . . . . 6 8 45 4 . 1 17 Ram . | . . . . . . . . . . . . . . Kick . | . . . . . . . . . . . . . . Crush . | . . . . . . . . . . . . . . Escape Stasis . | . . . . . . . . . . . . . . Rewire 108 | . . . . . . . . . 78 30 . . . Trap . | . . . . . . . . . . . . . . Miscellaneous 1 | . . . . . . . . . . 1 . . . Route ------- -11/Scrapyard -10/Materials (discovered 2 exits: [*Min x2]) -10/Mines -9/Materials (discovered 2 exits: *Min x2) -9/Mines (discovered 3 exits: *Mat x2 / *Exi) -9/Exiles -8/Mines -8/Materials (discovered 2 exits: *Sto x2) -8/Storage (discovered 2 exits: Rec / Gar) -8/Garrison (discovered 2 exits: *Rec x2) -8/Recycling (discovered 2 exits: *Fac / *Scr) -8/Scraptown -6/Factory -6/Garrison History --------- Turn | Location | Event 17 | -11/Scrapyard | Discovered new exit (range 14) 28 | -11/Scrapyard | Entered Materials 93 | -10/Materials | Discovered new exit (range 13) 147 | -10/Materials | Discovered new exit (range 9) 311 | -10/Materials | Build established: Mutant 378 | -10/Materials | Entered Mines 421 | -10/Mines | Discovered new exit (range 8) 433 | -10/Mines | Entered Materials 433 | -9/Materials | Evolved 2 slots: Propulsion x2 446 | -9/Materials | Central database locked down 488 | -9/Materials | Repaired Hover Unit 537 | -9/Materials | Identified exit to Mines 546 | -9/Materials | Entered Mines 566 | -9/Mines | Discovered new exit (range 9) 576 | -9/Mines | Met a Derelict bent on vengeance 625 | -9/Mines | Learned Materials stockpile data 687 | -9/Mines | Discovered new exit (range 10) 721 | -9/Mines | Deemed a non-threat by the Exiles lab entrance 721 | -9/Mines | Discovered new exit (range 5) 723 | -9/Mines | Entered Exiles 739 | -9/Exiles | Met 8R-AWN 747 | -9/Exiles | Met EX-HEX 763 | -9/Exiles | Met EX-BIN 770 | -9/Exiles | Aligned with FarCom system 770 | -9/Exiles | Given EX-Vault access code 783 | -9/Exiles | Opened EX-Vault 788 | -9/Exiles | Found Gui. Plasma Cannon 800 | -9/Exiles | Warned to stay clear of 0b10 Research branches 814 | -9/Exiles | Met EX-DEC 868 | -9/Exiles | Discovered new exit (range 10) 872 | -9/Exiles | Left Exiles lab with Gui. Plasma Cannon 872 | -9/Exiles | Entered Mines 949 | -8/Mines | Discovered new exit (range 14) 956 | -8/Mines | Entered Materials 956 | -8/Materials | Evolved 2 slots: Power x1, Utility x1 1129 | -8/Materials | Identified exit to Storage 1271 | -8/Materials | Entered Storage 1272 | -8/Storage | Identified exit to Recycling 1296 | -8/Storage | Garrison activated, responded to threat 1338 | -8/Storage | Identified exit to Garrison 1338 | -8/Storage | Entered Garrison 1366 | -8/Garrison | Triggered checkpoint 1402 | -8/Garrison | Triggered checkpoint 1466 | -8/Garrison | Lost 6 parts (1p4n1w) 1529 | -8/Garrison | Core integrity fell below 50% 1547 | -8/Garrison | Lost 4 parts (1p2n1w) 1709 | -8/Garrison | Garrison Relay disabled 1796 | -8/Garrison | Triggered checkpoint 1836 | -8/Garrison | Triggered checkpoint 1967 | -8/Garrison | Build established: Scavenger-Mutant 2338 | -8/Garrison | Garrison Relay disabled 2366 | -8/Garrison | Discovered exit to Recycling (range 10) 2441 | -8/Garrison | Triggered checkpoint 2530 | -8/Garrison | Triggered checkpoint 2536 | -8/Garrison | Discovered exit to Recycling (range 15) 2708 | -8/Garrison | Installed Relay Interface Framework 2899 | -8/Garrison | Entered Recycling 2899 | -8/Recycling | Accompanied by 1 ally 3143 | -8/Recycling | Discovered new exit (range 5) 3320 | -8/Recycling | Lost 4 parts (2n1u1w) 3590 | -8/Recycling | Scanned before Scraplab entrance 3614 | -8/Recycling | Entered Scraplab 3624 | -8/Recycling | Discovered new exit (range 2) 3663 | -8/Recycling | Entered Scraptown 3663 | -8/Scraptown | Accompanied by 4 allies 4073 | -8/Scraptown | Discovered new exit (range 5) 4176 | -8/Scraptown | Visited Red Mages 4223 | -8/Scraptown | Visited TADAMA 4242 | -8/Scraptown | Visited Spacefarers 4309 | -8/Scraptown | Learned location of Extension (-5) 4360 | -8/Scraptown | Visited Bundlers 4457 | -8/Scraptown | Visited Awakened 4514 | -8/Scraptown | Turned away by UFD registrar 4706 | -8/Scraptown | Visited Cyclists 4729 | -8/Scraptown | Visited IN-MT5's Study 4775 | -8/Scraptown | Entered Factory 4775 | -6/Factory | Evolved 4 slots: Power x1, Propulsion x1, Utility x1, Weapon x1 5018 | -6/Factory | Identified exit to Garrison 5018 | -6/Factory | Entered Garrison 5231 | -6/Garrison | Core integrity fell below 50% 5239 | -6/Garrison | Core integrity fell below 20% 5243 | -6/Garrison | Destroyed by G-67 Veteran with Plasma Rifle Last Messages --------------- S-27 Virus destroyed. Acquired 23 matter. Critical hit (Burn: +37). Lgt. Nuclear Core destroyed. Hvy. Pick destroyed. Acquired 21 matter. Carbon-fiber Leg+ destroyed. Great Axe follow-up attack on G-50 Soldier. Destroyed Lgt. Angular Momentum Engine. Great Axe follow-up attack on G-50 Soldier. Great Axe destroyed. G-50 Soldier Carbon-fiber Leg severed. Falx destroyed. Critical hit (Burn: +50). C-45 Heavy ARC bursts open, deploying its payload. G-67 Veteran unfolds itself. G-50 Soldier unfolds itself. Mak. ECM Suite destroyed. Destroyed Carbon-fiber Leg. Map ----- +----------------------------------------------------+ | ?????????????????????????????????????????????????? | | ?????????????????????????????????????????????????? | | ?????????????????????????????????????????????????? | | ?????????????????????????????????????????????????? | | ?????????????????????????????????????????????????? | | ?????????????????????????????????????????????????? | | ?????????????????????????????????????????????????? | | ?????????????????????????????????????????????????? | | ?????????????????????????????????????????????????? | | ?????????????????????????????????????????????????? | | ?????????????????????????????????????????????????? | | ?????????????????????????????????????????????????? | | ?????????????????????????????????????????????????? | | ?????????????????????????????????????????????????? | | ?????????????????????????????????????????????????? | | ?????????????????????????????????????????????????? | | ???????????????? ??????????????????????????????? | | ???????????????#^^ #?????????????????????????????? | | ??????????????? "?????????????????????????????? | | ??????????????? "?????????????????????????????? | | ??????????????? "?????????????????????????????? | | ??????????????? "?????????????????????????????? | | ???????????????# #?????????????????????????????? | | ?????????? ## ##########????????????????????? | | ????????? % ggg%==###??????????????????? | | ????????? g!g@!%+ ???????????????????? | | ????????? ####+##*[#????????????????????? | | ??????????""""## #????g?#=s#????????????????????? | | ???????????gg??# #??????#!g#????????????????????? | | ???????????????# #??????# #????????????????????? | | ???????????????# #??????# #?????????gg?????????? | | ???????????????# #??????# #????????????????????? | | ???????????????# #??????+ #????????????????????? | | ???????????????# #??????# #????????????????????? | | ???????????????# ######## #????????????????????? | | ???????????????# ##### #??????????????? | | ???????????????# #??????????????? | | ???????????????########### #######??????????????? | | ?????????????????????????# #????????????????????? | | ?????????????????????????# #????????????????????? | | ?????????????############# #????????????????????? | | ?????????????#""""""""""## #????????????????????? | | ?????????????#"""!!!!!!"## #????????????????????? | | ?????????????#"" ## ##############???????? | | ?????????????#"! #???????? | | ?????????????#"! #???????? | | ?????????????#"! ############## #???????? | | ?????????????#"! #????????????# #???????? | | ?????????????#"" #????????????#####???????? | | ?????????????#"""! "#????????????????????????? | +----------------------------------------------------+ Best States ------------- Heat Dissipation 45 Energy Generation 36 Energy Capacity 690 Matter Stores 345 Matter Capacity 500 Sight Range 16 Terrain Scan Range 20 Terrain Scan Density 10 ECM Strength 2 Armor Coverage 150 Resistance: EM 25 Evasion (%) 55 Authchip Count 5 Item Schematics ----------------- None Robot Schematics ------------------ None Fabricated ------------ Nothing Repaired ---------- Hover Unit | 36% | -9/Materials Studied --------- Lgt. Ion Engine | -9/Materials | Hacked Carbon-fiber Leg | -8/Materials | Hacked Alien Tech Used ----------------- None Achievements -------------- True Hacker Challenges ------------ None Game ------ Seed DoorDeepArticulator Manual? 0 Play Time 01:34:08 Cumulative 55.0 hours Start 2026.08.20 @ 12:59:44 End 2026.08.23 @ 10:20:25 Sessions 3 Manual Loads 0 Difficulty Rogue Special Mode None Game No. 69 Rogue 69 Adventurer 0 Explorer 0 Win Type - Total 0 Types 0/0/0/0/0/0/0/0/0/0 Lore% 43 Gallery% 32 Achievement% 28 Wizard Run 0 Options --------- Layout 1 ASCII 0 Keyboard 0 Movement Mouse Keybinds 0 Fullscreen 2 Font 18/SmallcapsGlow Map View 51x43 Zoom Use 0% Tactical HUD 0 Map Filters NONE Filters NONE Steam 1 RUN: a182bc3b-172c-48f2-bc64-53200052913c